[Event "Early-Titled-Tuesday-Blitz-February-06-2024"]
[Site "Chess.com"]
[Date "2024.02.06"]
[Round "2"]
[White "allvim"]
[Black "Siemba"]
[Result "1/2-1/2"]
[WhiteElo "2352"]
[BlackElo "2527"]
[TimeControl "180+1"]
[EndTime "8:18:29 PST"]
[Termination "Game drawn by repetition"]

1. e4 {[%clk 0:03:00.9]} 1... e5 {[%clk 0:02:58.7]} 2. Nf3 {[%clk 0:03:00.6]}
2... Nc6 {[%clk 0:02:59.4]} 3. Bc4 {[%clk 0:03:00.1]} 3... Nf6 {[%clk
0:02:59.4]} 4. O-O {[%clk 0:02:59.8]} 4... Nxe4 {[%clk 0:02:55.9]} 5. Nc3 {[%clk
0:03:00]} 5... Nxc3 {[%clk 0:02:54.3]} 6. dxc3 {[%clk 0:03:00.9]} 6... Be7
{[%clk 0:02:54.6]} 7. Qd5 {[%clk 0:03:00.7]} 7... O-O {[%clk 0:02:55]} 8. Nxe5
{[%clk 0:03:00.9]} 8... Nxe5 {[%clk 0:02:55.6]} 9. Qxe5 {[%clk 0:03:01.8]} 9...
Bf6 {[%clk 0:02:53.1]} 10. Qh5 {[%clk 0:03:01.7]} 10... g6 {[%clk 0:02:51.8]}
11. Qf3 {[%clk 0:03:01.8]} 11... c6 {[%clk 0:02:50.8]} 12. Re1 {[%clk
0:03:01.3]} 12... d5 {[%clk 0:02:50.7]} 13. Bd3 {[%clk 0:03:01.2]} 13... Be6
{[%clk 0:02:43.4]} 14. Bh6 {[%clk 0:02:58.1]} 14... Bg7 {[%clk 0:02:43.2]} 15.
Bxg7 {[%clk 0:02:58.6]} 15... Kxg7 {[%clk 0:02:44.1]} 16. Re2 {[%clk 0:02:58.9]}
16... Qb6 {[%clk 0:02:43.6]} 17. b3 {[%clk 0:02:58.4]} 17... Qc5 {[%clk
0:02:42.4]} 18. c4 {[%clk 0:02:39.6]} 18... dxc4 {[%clk 0:02:29.9]} 19. Bxc4
{[%clk 0:02:38.5]} 19... Bxc4 {[%clk 0:02:29]} 20. Qc3+ {[%clk 0:02:38]} 20...
Kg8 {[%clk 0:02:26.5]} 21. bxc4 {[%clk 0:02:36.8]} 21... Rfe8 {[%clk 0:02:22.3]}
22. Rae1 {[%clk 0:02:36.2]} 22... Rxe2 {[%clk 0:02:21.3]} 23. Rxe2 {[%clk
0:02:37.1]} 23... Rd8 {[%clk 0:02:21.5]} 24. g3 {[%clk 0:02:33.9]} 24... Qd4
{[%clk 0:02:07.3]} 25. Re8+ {[%clk 0:02:31.5]} 25... Kg7 {[%clk 0:02:07.8]} 26.
Qxd4+ {[%clk 0:02:04.2]} 26... Rxd4 {[%clk 0:02:07.4]} 27. Re7 {[%clk 0:02:05]}
27... b6 {[%clk 0:01:59]} 28. c5 {[%clk 0:01:52.3]} 28... Rc4 {[%clk 0:01:43.9]}
29. Rxa7 {[%clk 0:01:44.5]} 29... Rxc5 {[%clk 0:01:37.6]} 30. Ra6 {[%clk
0:01:37.4]} 30... b5 {[%clk 0:01:36.9]} 31. a4 {[%clk 0:01:37.7]} 31... Rxc2
{[%clk 0:01:29.5]} 32. axb5 {[%clk 0:01:37.7]} 32... cxb5 {[%clk 0:01:30.4]} 33.
Rb6 {[%clk 0:01:38.2]} 33... Rc5 {[%clk 0:01:29]} 34. Kg2 {[%clk 0:01:37]} 34...
h5 {[%clk 0:01:27.7]} 35. h4 {[%clk 0:01:37.2]} 35... Kf8 {[%clk 0:01:27.4]} 36.
Rb7 {[%clk 0:01:36.7]} 36... Ke8 {[%clk 0:01:27]} 37. Kf3 {[%clk 0:01:36.8]}
37... Re5 {[%clk 0:01:26.1]} 38. Kf4 {[%clk 0:01:34.9]} 38... Rf5+ {[%clk
0:01:26.3]} 39. Ke4 {[%clk 0:01:29.9]} 39... Kd8 {[%clk 0:01:23.3]} 40. f4
{[%clk 0:01:30.4]} 40... Kc8 {[%clk 0:01:23.2]} 41. Re7 {[%clk 0:01:19.9]} 41...
b4 {[%clk 0:01:21.1]} 42. Kd4 {[%clk 0:01:19.5]} 42... b3 {[%clk 0:01:11.3]} 43.
Kc3 {[%clk 0:01:16.4]} 43... Rb5 {[%clk 0:01:10.7]} 44. Kb2 {[%clk 0:01:13]}
44... Rb7 {[%clk 0:01:10.3]} 45. Rxb7 {[%clk 0:01:09.4]} 45... Kxb7 {[%clk
0:01:10.8]} 46. Kxb3 {[%clk 0:01:10.3]} 46... Kc6 {[%clk 0:01:11]} 47. Kc4
{[%clk 0:01:10.8]} 47... Kd6 {[%clk 0:01:11.3]} 48. Kd4 {[%clk 0:01:11.4]} 48...
Ke6 {[%clk 0:01:11.8]} 49. Ke4 {[%clk 0:01:05.7]} 49... Kf6 {[%clk 0:01:11.2]}
50. f5 {[%clk 0:00:18.2]} 50... gxf5+ {[%clk 0:00:46.8]} 51. Kf4 {[%clk
0:00:18.4]} 51... Ke6 {[%clk 0:00:47.5]} 52. Kg5 {[%clk 0:00:18.9]} 52... Ke5
{[%clk 0:00:47.8]} 53. Kxh5 {[%clk 0:00:17.9]} 53... f4 {[%clk 0:00:48.5]} 54.
Kg4 {[%clk 0:00:10.5]} 54... fxg3 {[%clk 0:00:31.4]} 55. Kxg3 {[%clk 0:00:10.5]}
55... Kf5 {[%clk 0:00:32.1]} 56. Kf3 {[%clk 0:00:08.8]} 56... f6 {[%clk
0:00:28]} 57. h5 {[%clk 0:00:09.2]} 57... Kg5 {[%clk 0:00:28.6]} 58. h6 {[%clk
0:00:09.7]} 58... Kxh6 {[%clk 0:00:28.5]} 59. Kf4 {[%clk 0:00:10.6]} 59... Kg6
{[%clk 0:00:28.7]} 60. Kg4 {[%clk 0:00:11.1]} 60... Kf7 {[%clk 0:00:29.1]} 61.
Kf4 {[%clk 0:00:11.1]} 61... Ke7 {[%clk 0:00:29.7]} 62. Ke4 {[%clk 0:00:11.5]}
62... Ke6 {[%clk 0:00:30.4]} 63. Kf4 {[%clk 0:00:12.4]} 63... f5 {[%clk
0:00:30.7]} 64. Kf3 {[%clk 0:00:13]} 64... Ke5 {[%clk 0:00:31.4]} 65. Ke3 {[%clk
0:00:13.9]} 65... Kf6 {[%clk 0:00:32]} 66. Kf3 {[%clk 0:00:14.8]} 66... Kg6
{[%clk 0:00:31.8]} 67. Kg3 {[%clk 0:00:14.4]} 67... Kg5 {[%clk 0:00:32.5]} 68.
Kf3 {[%clk 0:00:14.3]} 68... f4 {[%clk 0:00:33.2]} 69. Kf2 {[%clk 0:00:14.8]}
69... Kf5 {[%clk 0:00:34.1]} 70. Ke2 {[%clk 0:00:15.1]} 70... Ke4 {[%clk
0:00:34.8]} 71. Kf2 {[%clk 0:00:15.3]} 71... f3 {[%clk 0:00:35.7]} 72. Kf1
{[%clk 0:00:12]} 72... Kf4 {[%clk 0:00:36.6]} 73. Kf2 {[%clk 0:00:12.3]} 73...
Kg4 {[%clk 0:00:37.3]} 74. Kf1 {[%clk 0:00:12.7]} 74... Kg3 {[%clk 0:00:38.1]}
75. Kg1 {[%clk 0:00:12.8]} 75... Kf4 {[%clk 0:00:38.9]} 76. Kf2 {[%clk 0:00:13]}
76... Ke4 {[%clk 0:00:39.1]} 77. Kf1 {[%clk 0:00:13.5]} 77... Kd3 {[%clk
0:00:39.6]} 78. Kf2 {[%clk 0:00:13.5]} 78... Ke4 {[%clk 0:00:40.1]} 1/2-1/2

[Event "Early-Titled-Tuesday-Blitz-February-06-2024"]
[Site "Chess.com"]
[Date "2024.02.06"]
[Round "2"]
[White "Eagle_2019"]
[Black "Russian_berezka"]
[Result "1-0"]
[WhiteElo "2853"]
[BlackElo "2585"]
[TimeControl "180+1"]
[EndTime "8:18:30 PST"]
[Termination "Eagle_2019 won by resignation"]

1. d4 {[%clk 0:03:00.9]} 1... Nf6 {[%clk 0:02:58.6]} 2. Bg5 {[%clk 0:02:59.9]}
2... d5 {[%clk 0:02:55]} 3. Bxf6 {[%clk 0:02:59.4]} 3... gxf6 {[%clk 0:02:54.4]}
4. e3 {[%clk 0:02:59.4]} 4... c5 {[%clk 0:02:54]} 5. Nf3 {[%clk 0:02:57.2]} 5...
Nc6 {[%clk 0:02:49.6]} 6. dxc5 {[%clk 0:02:55.3]} 6... e6 {[%clk 0:02:46.1]} 7.
c4 {[%clk 0:02:49.4]} 7... dxc4 {[%clk 0:02:45.6]} 8. Nbd2 {[%clk 0:02:49.2]}
8... c3 {[%clk 0:02:38.3]} 9. bxc3 {[%clk 0:02:48.7]} 9... Bxc5 {[%clk
0:02:37.8]} 10. Be2 {[%clk 0:02:48.3]} 10... Rg8 {[%clk 0:02:25]} 11. O-O {[%clk
0:02:47.5]} 11... f5 {[%clk 0:02:23.2]} 12. Nd4 {[%clk 0:02:35.4]} 12... Bd7
{[%clk 0:02:15.4]} 13. Nc4 {[%clk 0:02:29]} 13... Qe7 {[%clk 0:02:03.7]} 14. Nb5
{[%clk 0:02:21.2]} 14... Kf8 {[%clk 0:01:57.2]} 15. Bf3 {[%clk 0:02:08.4]} 15...
Rd8 {[%clk 0:01:52]} 16. Qb3 {[%clk 0:01:57]} 16... a6 {[%clk 0:01:46.4]} 17.
Nd4 {[%clk 0:01:56.3]} 17... Bxd4 {[%clk 0:01:16.3]} 18. cxd4 {[%clk 0:01:53.9]}
18... b5 {[%clk 0:01:15.7]} 19. Nb6 {[%clk 0:01:42.3]} 19... Be8 {[%clk
0:01:08.6]} 20. Qc3 {[%clk 0:01:42]} 20... Qb4 {[%clk 0:01:04.9]} 21. Rac1
{[%clk 0:01:30.2]} 21... Qxc3 {[%clk 0:00:56.4]} 22. Rxc3 {[%clk 0:01:31.1]}
22... Ne7 {[%clk 0:00:34.6]} 23. Rfc1 {[%clk 0:01:18.7]} 23... f4 {[%clk
0:00:34.1]} 24. Rc7 {[%clk 0:01:08.6]} 24... Nf5 {[%clk 0:00:29.4]} 25. R1c3
{[%clk 0:00:33.7]} 25... Nh4 {[%clk 0:00:28.4]} 26. Be4 {[%clk 0:00:32.2]} 26...
Nxg2 {[%clk 0:00:26.4]} 27. Kf1 {[%clk 0:00:30.3]} 27... Nh4 {[%clk 0:00:24]}
28. Rc8 {[%clk 0:00:28.7]} 28... Rxc8 {[%clk 0:00:16.9]} 29. Rxc8 {[%clk
0:00:29.6]} 29... Ke7 {[%clk 0:00:17.2]} 30. exf4 {[%clk 0:00:28.2]} 30... Rg4
{[%clk 0:00:12.5]} 31. Rc7+ {[%clk 0:00:27.5]} 31... Kf6 {[%clk 0:00:11.9]} 32.
Nc8 {[%clk 0:00:26.2]} 32... Rxf4 {[%clk 0:00:10.4]} 33. Nd6 {[%clk 0:00:25.6]}
33... Kg5 {[%clk 0:00:05.6]} 34. Bxh7 {[%clk 0:00:22.3]} 34... Rxd4 {[%clk
0:00:04.5]} 35. Nxe8 {[%clk 0:00:20.9]} 35... Kf4 {[%clk 0:00:03.7]} 36. Rxf7+
{[%clk 0:00:19.4]} 36... Ke5 {[%clk 0:00:03.6]} 37. Bc2 {[%clk 0:00:17.9]} 37...
Rd2 {[%clk 0:00:03.3]} 38. Bb3 {[%clk 0:00:16.5]} 38... Nf5 {[%clk 0:00:04]} 39.
Nc7 {[%clk 0:00:15.6]} 39... Nd4 {[%clk 0:00:04]} 40. Nxa6 {[%clk 0:00:14.1]}
40... Rb2 {[%clk 0:00:03.3]} 41. Nc5 {[%clk 0:00:13.1]} 41... Rb1+ {[%clk
0:00:03.4]} 42. Kg2 {[%clk 0:00:13.1]} 42... Kd6 {[%clk 0:00:04]} 43. Ne4+
{[%clk 0:00:13.1]} 43... Ke5 {[%clk 0:00:04]} 44. Nd2 {[%clk 0:00:13]} 44... Rb2
{[%clk 0:00:04]} 45. Nf3+ {[%clk 0:00:13.2]} 45... Nxf3 {[%clk 0:00:04.1]} 46.
Rxf3 {[%clk 0:00:14.1]} 46... Kd6 {[%clk 0:00:01.9]} 47. h4 {[%clk 0:00:14.1]}
47... e5 {[%clk 0:00:02]} 48. h5 {[%clk 0:00:14.4]} 48... e4 {[%clk 0:00:02.7]}
49. Rf5 {[%clk 0:00:14.5]} 49... b4 {[%clk 0:00:02]} 50. h6 {[%clk 0:00:14.1]}
1-0

[Event "Early-Titled-Tuesday-Blitz-February-06-2024"]
[Site "Chess.com"]
[Date "2024.02.06"]
[Round "2"]
[White "jup1978"]
[Black "Irina_Mikhaylova"]
[Result "1/2-1/2"]
[WhiteElo "2525"]
[BlackElo "2348"]
[TimeControl "180+1"]
[EndTime "8:18:30 PST"]
[Termination "Game drawn by repetition"]

1. d4 {[%clk 0:03:00.9]} 1... Nf6 {[%clk 0:02:59.6]} 2. Nf3 {[%clk 0:03:01]}
2... g6 {[%clk 0:02:59.8]} 3. c4 {[%clk 0:02:59.1]} 3... Bg7 {[%clk 0:03:00]} 4.
Nc3 {[%clk 0:02:58.6]} 4... d5 {[%clk 0:03:00.4]} 5. Bf4 {[%clk 0:02:56.8]} 5...
O-O {[%clk 0:02:59.8]} 6. e3 {[%clk 0:02:56.6]} 6... c5 {[%clk 0:02:59.6]} 7.
dxc5 {[%clk 0:02:53.3]} 7... Qa5 {[%clk 0:02:59.2]} 8. Qd2 {[%clk 0:02:39.7]}
8... dxc4 {[%clk 0:02:34.8]} 9. Bxc4 {[%clk 0:02:33.7]} 9... Qxc5 {[%clk
0:02:34.3]} 10. Qd4 {[%clk 0:02:24.3]} 10... Nbd7 {[%clk 0:01:50.7]} 11. O-O
{[%clk 0:02:18.3]} 11... Qxd4 {[%clk 0:01:45.7]} 12. exd4 {[%clk 0:02:19.2]}
12... Nb6 {[%clk 0:01:38.8]} 13. Bb3 {[%clk 0:02:16.3]} 13... Bf5 {[%clk
0:01:23.5]} 14. Ne5 {[%clk 0:02:13.2]} 14... Ne4 {[%clk 0:01:13.6]} 15. Rfe1
{[%clk 0:02:08.3]} 15... Nxc3 {[%clk 0:00:55.4]} 16. bxc3 {[%clk 0:02:09.2]}
16... Rac8 {[%clk 0:00:55.5]} 17. Rac1 {[%clk 0:02:07.7]} 17... Bf6 {[%clk
0:00:47.8]} 18. h3 {[%clk 0:01:58.2]} 18... Bxe5 {[%clk 0:00:31.6]} 19. Bxe5
{[%clk 0:01:56.4]} 19... Nc4 {[%clk 0:00:31.9]} 20. Bf4 {[%clk 0:01:49.3]} 20...
Be6 {[%clk 0:00:31.5]} 21. Re2 {[%clk 0:01:36.2]} 21... Rfd8 {[%clk 0:00:26.3]}
22. Rd1 {[%clk 0:01:26.4]} 22... Kg7 {[%clk 0:00:25.1]} 23. f3 {[%clk
0:01:20.2]} 23... b5 {[%clk 0:00:23.3]} 24. Kf2 {[%clk 0:01:19.6]} 24... Rd7
{[%clk 0:00:23.4]} 25. Bc1 {[%clk 0:01:15.5]} 25... Bd5 {[%clk 0:00:22.9]} 26.
Rde1 {[%clk 0:01:12.4]} 26... e6 {[%clk 0:00:23.1]} 27. f4 {[%clk 0:01:11]}
27... Nb6 {[%clk 0:00:18.9]} 28. Bd2 {[%clk 0:01:07.4]} 28... Bc4 {[%clk
0:00:18.3]} 29. Re5 {[%clk 0:01:04.9]} 29... Nd5 {[%clk 0:00:18.3]} 30. Rc1
{[%clk 0:00:57.9]} 30... Rcc7 {[%clk 0:00:17.8]} 31. g4 {[%clk 0:00:57.8]} 31...
Rc6 {[%clk 0:00:17.9]} 32. a3 {[%clk 0:00:58.7]} 32... Rdc7 {[%clk 0:00:16.9]}
33. f5 {[%clk 0:00:59.3]} 33... Bxb3 {[%clk 0:00:17]} 34. fxe6 {[%clk
0:00:53.2]} 34... Rxe6 {[%clk 0:00:17.9]} 35. Rxe6 {[%clk 0:00:47.2]} 35... fxe6
{[%clk 0:00:18.8]} 36. Bg5 {[%clk 0:00:44.3]} 36... Rf7+ {[%clk 0:00:18.2]} 37.
Kg3 {[%clk 0:00:44.6]} 37... h6 {[%clk 0:00:19.1]} 38. Bd2 {[%clk 0:00:43.7]}
38... g5 {[%clk 0:00:20]} 39. Re1 {[%clk 0:00:43.5]} 39... Re7 {[%clk
0:00:20.3]} 40. h4 {[%clk 0:00:42]} 40... Nf4 {[%clk 0:00:20.6]} 41. hxg5 {[%clk
0:00:41.6]} 41... hxg5 {[%clk 0:00:21.5]} 42. Re5 {[%clk 0:00:41.4]} 42... Kf6
{[%clk 0:00:21.4]} 43. Rxb5 {[%clk 0:00:40.9]} 43... Bd5 {[%clk 0:00:20.6]} 44.
Rc5 {[%clk 0:00:39.1]} 44... Rb7 {[%clk 0:00:20.7]} 45. c4 {[%clk 0:00:39.4]}
45... Be4 {[%clk 0:00:21.1]} 46. Bb4 {[%clk 0:00:39.2]} 46... Bd3 {[%clk
0:00:20.8]} 47. d5 {[%clk 0:00:38.8]} 47... exd5 {[%clk 0:00:20.6]} 48. cxd5
{[%clk 0:00:39.4]} 48... Rd7 {[%clk 0:00:21.2]} 49. d6 {[%clk 0:00:37.7]} 49...
Rxd6 {[%clk 0:00:21.3]} 50. Rc7 {[%clk 0:00:35.6]} 50... Rd5 {[%clk 0:00:21.3]}
51. Rxa7 {[%clk 0:00:35]} 51... Ne6 {[%clk 0:00:20.2]} 52. Be7+ {[%clk
0:00:31.7]} 52... Kg6 {[%clk 0:00:20]} 53. Bb4 {[%clk 0:00:30.9]} 53... Be4
{[%clk 0:00:19.3]} 54. Re7 {[%clk 0:00:26.2]} 54... Rd3+ {[%clk 0:00:20.2]} 55.
Kf2 {[%clk 0:00:25.4]} 55... Kf6 {[%clk 0:00:21.1]} 56. Re8 {[%clk 0:00:24.6]}
56... Ke5 {[%clk 0:00:21.3]} 57. a4 {[%clk 0:00:22.8]} 57... Rb3 {[%clk
0:00:19.1]} 58. Be7 {[%clk 0:00:21.3]} 58... Kd5 {[%clk 0:00:19.2]} 59. a5
{[%clk 0:00:19.6]} 59... Rb2+ {[%clk 0:00:19.6]} 60. Ke3 {[%clk 0:00:17.8]}
60... Rb3+ {[%clk 0:00:19.7]} 61. Kd2 {[%clk 0:00:17.5]} 61... Nf4 {[%clk
0:00:20.1]} 62. Bxg5 {[%clk 0:00:15]} 62... Nd3 {[%clk 0:00:20.2]} 63. Rd8+
{[%clk 0:00:13.8]} 63... Kc4 {[%clk 0:00:20.2]} 64. Rc8+ {[%clk 0:00:13.5]}
64... Kd5 {[%clk 0:00:20.4]} 65. Rd8+ {[%clk 0:00:13.2]} 65... Kc4 {[%clk
0:00:20.8]} 66. Rc8+ {[%clk 0:00:13.5]} 66... Kd5 {[%clk 0:00:21.2]} 67. Rd8+
{[%clk 0:00:13.9]} 1/2-1/2

[Event "Early-Titled-Tuesday-Blitz-February-06-2024"]
[Site "Chess.com"]
[Date "2024.02.06"]
[Round "2"]
[White "Jenia84"]
[Black "VomDingJetztHer"]
[Result "1/2-1/2"]
[WhiteElo "2291"]
[BlackElo "2495"]
[TimeControl "180+1"]
[EndTime "8:18:31 PST"]
[Termination "Game drawn - insufficient material"]

1. e4 {[%clk 0:02:53.2]} 1... a6 {[%clk 0:02:59.9]} 2. a4 {[%clk 0:02:50.6]}
2... e5 {[%clk 0:02:58.3]} 3. c3 {[%clk 0:02:48.9]} 3... Nf6 {[%clk 0:02:49.2]}
4. d3 {[%clk 0:02:47.9]} 4... Nc6 {[%clk 0:02:48.8]} 5. g3 {[%clk 0:02:48.1]}
5... Bc5 {[%clk 0:02:48.5]} 6. Bg2 {[%clk 0:02:48]} 6... Ba7 {[%clk 0:02:49.2]}
7. Ne2 {[%clk 0:02:46.2]} 7... d6 {[%clk 0:02:49.9]} 8. O-O {[%clk 0:02:45.9]}
8... O-O {[%clk 0:02:49.5]} 9. b4 {[%clk 0:02:37.7]} 9... Ne7 {[%clk 0:02:48.5]}
10. Be3 {[%clk 0:02:34.4]} 10... Bxe3 {[%clk 0:02:46.4]} 11. fxe3 {[%clk
0:02:34.4]} 11... Ng6 {[%clk 0:02:47.1]} 12. Qe1 {[%clk 0:02:29.7]} 12... Ng4
{[%clk 0:02:39.6]} 13. Nc1 {[%clk 0:02:28.8]} 13... Qg5 {[%clk 0:02:34.7]} 14.
Rf3 {[%clk 0:02:21.2]} 14... f5 {[%clk 0:02:23.3]} 15. exf5 {[%clk 0:02:17.6]}
15... Rxf5 {[%clk 0:02:22.1]} 16. Rxf5 {[%clk 0:02:16.4]} 16... Bxf5 {[%clk
0:02:20.7]} 17. Bxb7 {[%clk 0:01:51.6]} 17... Ra7 {[%clk 0:02:19.6]} 18. Bd5+
{[%clk 0:01:51]} 18... Kh8 {[%clk 0:02:17]} 19. e4 {[%clk 0:01:47]} 19... Bd7
{[%clk 0:02:16.1]} 20. Nd2 {[%clk 0:01:43.3]} 20... Ne3 {[%clk 0:02:08.7]} 21.
Nf3 {[%clk 0:01:39.2]} 21... Qh6 {[%clk 0:02:05.7]} 22. Qd2 {[%clk 0:01:22.9]}
22... c6 {[%clk 0:01:39.9]} 23. Bb3 {[%clk 0:01:14.8]} 23... Bg4 {[%clk
0:01:38.1]} 24. Ne1 {[%clk 0:01:10.7]} 24... d5 {[%clk 0:01:33.1]} 25. Ng2
{[%clk 0:00:58.7]} 25... d4 {[%clk 0:01:23.4]} 26. cxd4 {[%clk 0:00:58]} 26...
exd4 {[%clk 0:01:24.3]} 27. Ne2 {[%clk 0:00:54.3]} 27... Nxg2 {[%clk 0:00:57.1]}
28. Qxh6 {[%clk 0:00:52.4]} 28... gxh6 {[%clk 0:00:58]} 29. Nxd4 {[%clk
0:00:47.3]} 29... Ne3 {[%clk 0:00:53.6]} 30. Nxc6 {[%clk 0:00:45.6]} 30... Rc7
{[%clk 0:00:50.4]} 31. b5 {[%clk 0:00:42.8]} 31... Bd7 {[%clk 0:00:41.9]} 32.
Bd5 {[%clk 0:00:33.5]} 32... Nxd5 {[%clk 0:00:25.7]} 33. exd5 {[%clk 0:00:33.7]}
33... axb5 {[%clk 0:00:21.2]} 34. axb5 {[%clk 0:00:33.2]} 34... Kg7 {[%clk
0:00:20.5]} 35. b6 {[%clk 0:00:23.6]} 35... Rb7 {[%clk 0:00:20.6]} 36. Ra7
{[%clk 0:00:21.4]} 36... Bc8 {[%clk 0:00:15.7]} 37. d6 {[%clk 0:00:16.8]} 37...
Nf8 {[%clk 0:00:12.3]} 38. Ne5 {[%clk 0:00:09.1]} 38... Kf6 {[%clk 0:00:07.1]}
39. d4 {[%clk 0:00:09.6]} 39... Ke6 {[%clk 0:00:06.8]} 40. Nc4 {[%clk
0:00:05.8]} 40... Rxa7 {[%clk 0:00:06.1]} 41. bxa7 {[%clk 0:00:05.5]} 41... Bb7
{[%clk 0:00:06.7]} 42. Nb6 {[%clk 0:00:05.8]} 42... Kxd6 {[%clk 0:00:06.9]} 43.
a8=Q {[%clk 0:00:06.2]} 43... Bxa8 {[%clk 0:00:07.1]} 44. Nxa8 {[%clk
0:00:06.6]} 44... Kc6 {[%clk 0:00:07.5]} 45. d5+ {[%clk 0:00:06.6]} 45... Kb7
{[%clk 0:00:08]} 46. Kf2 {[%clk 0:00:06.2]} 46... Kxa8 {[%clk 0:00:08.3]} 47.
Ke3 {[%clk 0:00:07.1]} 47... Kb7 {[%clk 0:00:08.5]} 48. Kd4 {[%clk 0:00:07.6]}
48... Kc7 {[%clk 0:00:08.7]} 49. Ke5 {[%clk 0:00:08.2]} 49... Kd7 {[%clk
0:00:07.2]} 50. Kf6 {[%clk 0:00:08.5]} 50... Kd6 {[%clk 0:00:04.4]} 51. Kg7
{[%clk 0:00:08.8]} 51... Nd7 {[%clk 0:00:03.6]} 52. Kxh7 {[%clk 0:00:08.2]}
52... h5 {[%clk 0:00:04]} 53. Kg6 {[%clk 0:00:08.4]} 53... Kxd5 {[%clk 0:00:03]}
54. Kxh5 {[%clk 0:00:08.6]} 54... Ke6 {[%clk 0:00:03.8]} 55. Kg6 {[%clk
0:00:08.9]} 55... Ne5+ {[%clk 0:00:04.4]} 56. Kg7 {[%clk 0:00:08.6]} 56... Kf5
{[%clk 0:00:04.2]} 57. h4 {[%clk 0:00:09]} 57... Ng4 {[%clk 0:00:02.9]} 58. h5
{[%clk 0:00:09.3]} 58... Kg5 {[%clk 0:00:03.4]} 59. h6 {[%clk 0:00:09.7]} 59...
Nxh6 {[%clk 0:00:03.8]} 60. Kh7 {[%clk 0:00:09.9]} 60... Ng4 {[%clk 0:00:04.7]}
61. Kg7 {[%clk 0:00:10.4]} 61... Ne3 {[%clk 0:00:05.4]} 62. Kf7 {[%clk
0:00:11.3]} 62... Kg4 {[%clk 0:00:06.3]} 63. Ke6 {[%clk 0:00:12]} 63... Ng2
{[%clk 0:00:07.1]} 64. Ke5 {[%clk 0:00:12.5]} 64... Kxg3 {[%clk 0:00:08]}
1/2-1/2

[Event "Early-Titled-Tuesday-Blitz-February-06-2024"]
[Site "Chess.com"]
[Date "2024.02.06"]
[Round "2"]
[White "alexrustemov"]
[Black "Juwen"]
[Result "1/2-1/2"]
[WhiteElo "2768"]
[BlackElo "2559"]
[TimeControl "180+1"]
[EndTime "8:18:33 PST"]
[Termination "Game drawn by repetition"]

1. d4 {[%clk 0:03:00.9]} 1... Nf6 {[%clk 0:02:59.4]} 2. c4 {[%clk 0:03:01]} 2...
e6 {[%clk 0:02:59.9]} 3. Nf3 {[%clk 0:03:01.4]} 3... Bb4+ {[%clk 0:02:58.8]} 4.
Bd2 {[%clk 0:03:01.4]} 4... Qe7 {[%clk 0:02:56.4]} 5. g3 {[%clk 0:03:01.8]} 5...
Bxd2+ {[%clk 0:02:46.8]} 6. Qxd2 {[%clk 0:03:00.4]} 6... Nc6 {[%clk 0:02:47.1]}
7. a3 {[%clk 0:02:53.8]} 7... O-O {[%clk 0:02:43.5]} 8. Bg2 {[%clk 0:02:52.5]}
8... d6 {[%clk 0:02:43.9]} 9. Nc3 {[%clk 0:02:48.5]} 9... e5 {[%clk 0:02:43.9]}
10. O-O {[%clk 0:02:33.2]} 10... Bg4 {[%clk 0:02:08]} 11. dxe5 {[%clk
0:02:26.9]} 11... dxe5 {[%clk 0:02:06.2]} 12. Nd5 {[%clk 0:02:26.1]} 12... Nxd5
{[%clk 0:02:05.9]} 13. cxd5 {[%clk 0:02:25.8]} 13... Bxf3 {[%clk 0:02:05.9]} 14.
dxc6 {[%clk 0:02:11.2]} 14... Bxg2 {[%clk 0:02:02.4]} 15. Kxg2 {[%clk 0:02:11]}
15... bxc6 {[%clk 0:02:03.3]} 16. Rac1 {[%clk 0:02:05.9]} 16... Rfd8 {[%clk
0:02:01.7]} 17. Qe3 {[%clk 0:02:01.7]} 17... Rd6 {[%clk 0:01:58.1]} 18. Rc5
{[%clk 0:01:58.6]} 18... f6 {[%clk 0:01:52.5]} 19. Rfc1 {[%clk 0:01:59]} 19...
Qe6 {[%clk 0:01:39.7]} 20. Qc3 {[%clk 0:01:54.1]} 20... Rb8 {[%clk 0:01:31.1]}
21. b4 {[%clk 0:01:53.6]} 21... Rb6 {[%clk 0:01:29.6]} 22. Ra5 {[%clk
0:01:48.2]} 22... a6 {[%clk 0:01:28.9]} 23. Rc5 {[%clk 0:01:46.5]} 23... h6
{[%clk 0:01:27.4]} 24. h4 {[%clk 0:01:43.5]} 24... Qg4 {[%clk 0:01:16.1]} 25.
Rc2 {[%clk 0:01:39.1]} 25... Qf5 {[%clk 0:01:02.4]} 26. f3 {[%clk 0:01:27.5]}
26... Qe6 {[%clk 0:01:01.5]} 27. h5 {[%clk 0:01:25.7]} 27... e4 {[%clk
0:00:58.6]} 28. g4 {[%clk 0:01:21.3]} 28... exf3+ {[%clk 0:00:57.5]} 29. exf3
{[%clk 0:01:21.6]} 29... Rd5 {[%clk 0:00:49.9]} 30. Rxc6 {[%clk 0:01:05.4]}
30... Rxc6 {[%clk 0:00:50.8]} 31. Qxc6 {[%clk 0:01:05.7]} 31... Rd2+ {[%clk
0:00:50.6]} 32. Kh3 {[%clk 0:01:05.7]} 32... Qxc6 {[%clk 0:00:41.3]} 33. Rxc6
{[%clk 0:01:05]} 33... Rd3 {[%clk 0:00:42]} 34. Rxa6 {[%clk 0:01:00.5]} 34...
Rxf3+ {[%clk 0:00:41.2]} 35. Kg2 {[%clk 0:01:01.1]} 35... Rc3 {[%clk 0:00:38.1]}
36. b5 {[%clk 0:00:58.4]} 36... Kf7 {[%clk 0:00:34.5]} 37. a4 {[%clk 0:00:58.9]}
37... Ke7 {[%clk 0:00:32.5]} 38. Ra7 {[%clk 0:00:56.4]} 38... Kd6 {[%clk
0:00:32.1]} 39. a5 {[%clk 0:00:52.6]} 39... Rb3 {[%clk 0:00:31.7]} 40. Rb7
{[%clk 0:00:50.2]} 40... Ra3 {[%clk 0:00:29.2]} 41. a6 {[%clk 0:00:49.3]} 41...
Ra4 {[%clk 0:00:25.3]} 42. Kf3 {[%clk 0:00:48.9]} 42... Ra3+ {[%clk 0:00:24.7]}
43. Kf4 {[%clk 0:00:48.9]} 43... Ra4+ {[%clk 0:00:20]} 44. Kf5 {[%clk 0:00:49]}
44... Rb4 {[%clk 0:00:20.5]} 45. a7 {[%clk 0:00:41.3]} 45... Ra4 {[%clk
0:00:20.7]} 46. b6 {[%clk 0:00:35]} 46... cxb6 {[%clk 0:00:20.7]} 47. Rxb6+
{[%clk 0:00:35.5]} 47... Kc7 {[%clk 0:00:18.6]} 48. Re6 {[%clk 0:00:34.2]} 48...
Kd7 {[%clk 0:00:19]} 49. Rb6 {[%clk 0:00:25.5]} 49... Rxa7 {[%clk 0:00:18.7]}
50. Kg6 {[%clk 0:00:25.8]} 50... Ra4 {[%clk 0:00:18.3]} 51. Kxg7 {[%clk
0:00:23.6]} 51... Rxg4+ {[%clk 0:00:18.8]} 52. Kxh6 {[%clk 0:00:22.3]} 52... Ke7
{[%clk 0:00:18.5]} 53. Kh7 {[%clk 0:00:19.2]} 53... f5 {[%clk 0:00:15.3]} 54.
Rg6 {[%clk 0:00:18.9]} 54... Rh4 {[%clk 0:00:15.4]} 55. h6 {[%clk 0:00:17.9]}
55... Kf7 {[%clk 0:00:15.5]} 56. Rg5 {[%clk 0:00:17.5]} 56... Kf6 {[%clk
0:00:15.5]} 57. Rg8 {[%clk 0:00:17.2]} 57... f4 {[%clk 0:00:14.6]} 58. Rf8+
{[%clk 0:00:17.2]} 58... Ke7 {[%clk 0:00:15]} 59. Rf5 {[%clk 0:00:15.7]} 59...
Ke6 {[%clk 0:00:14.4]} 60. Rf8 {[%clk 0:00:15.7]} 60... Ke7 {[%clk 0:00:14.9]}
61. Rf5 {[%clk 0:00:09.9]} 61... Ke6 {[%clk 0:00:15.2]} 62. Rf8 {[%clk
0:00:09.9]} 62... Ke7 {[%clk 0:00:15.6]} 1/2-1/2